Workbook

Sheet Прилож1
A1: Приложение 1
A2: к решению "О бюджете МО « село Зубанчи »
A3: на 2017 год
A4: от___________________ №_______________
B7: Прогноз доходов бюджета МО « село Зубанчи » на 2017 год
C8: ( руб.)
B9: Коды бюджетной классификации Российской Федерации | C9: Наименование доходов | D9: 2017 г.
B11: 1 | C11: 2 | D11: 3
B12: 1 00 00000 00 0000 000 | C12: Доходы | D12: =D13+D15+D17 -> 230500
B13: 1 01 00000 00 0000 000 | C13: Налоги на прибыль, доходы | D13: =D14 -> 19000
B14: 1 01 02021 01 0000 110 | C14: Налог на доходы физических лиц | D14: 19000
B15: 1 05 00000 00 0000 000 | C15: Налоги на совокупный доход | D15: =D16 -> 25000
B16: 1 05 03000 01 0000 110 | C16: Единый сельскохозяйственный налог | D16: 25000
B17: 1 06 00000 00 0000 000 | C17: Налоги на имущество | D17: =D18+D19 -> 186500
B18: 1 06 0200 02 0000 110 | C18: Налог на имущество физических лиц | D18: 42000
B19: 1 06 06000 03 0000 000 | C19: Земельный налог | D19: =D20+D21 -> 144500
B20: 1 06 06031 03 0000 110 | C20: Земельный налог с юр. Лиц. | D20: 50000
B21: 1 06 06031 03 0000 110 | C21: Земельный налог с физ. Лиц. | D21: 94500
B22: 1 14 00000 00 0000 000 | C22: Доходы от продажи материальных и нематериальных активов | D22: =D23 -> 0
B23: 1 14 02000 00 0000 000 | C23: Доходы от реализации имущества, находящегося в государственной и муниципальной собственности | D23: ='[1]Сводная смета 2014'!C123 -> 0
B24: 2 02 00000 00 0000 000 | C24: Безвозмездные поступления от других бюджетов бюджетной системы РФ, кроме бюджетов государственных внебюджетных фондов | D24: =D25+D26 -> 1534819
B25: 2 02 0302410 10 0000 151 | C25: Субвенции бюджетам поселений на выполнения передаваемых полномочий субъектов Российской Федерации. | D25: 1477819
B26: 2 02 0301510 10 0000 151 | C26: Субвенции бюджетам поселений на осуществление полномочий по первичному воинскому учету на территориях, где отсутствуют военные комиссариаты | D26: 57000
C27: ВСЕГО ДОХОДОВ | D27: =D24+D12 -> 1765319
D28: =D27-[2]Прилож3!#REF! -> 
D29: =([2]Прилож3!#REF!-[2]Прилож3!#REF!-Прилож1!D12) -> 
D33: =D29-([2]Прилож3!#REF!+[2]Прилож3!#REF!+[2]Прилож3!#REF!+[2]Прилож3!#REF!) -> 

Sheet Прилож3
A1: Приложение 3
A2: к решению "О бюджете МО « село Зубанчи »
A3: на 2017 год
A4: от___________________ №_______________
B7: Распределение
A8: расходов местного бюджета по разделам, подразделам функциональной классификации расходов Российской Федерации
B10: ( руб.)
B11: Наименование показателя | C11: Раздел | D11: Подраздел | E11: 2017 г.
B13: 1 | C13: 2 | D13: 3
B14: Всего расходов | E14: =E15+E19+E21+E23 -> 1765319
B15: Общегосударственные вопросы | C15: 01 | D15: 00 | E15: =E16+E17+E18 -> 1171460
B16: Функционирование местных администраций | C16: 01 | D16: 04 | E16: 988580
B17: Другие общегосударственне вопросы (ЦБ) | C17: 01 | D17: 13 | E17: 182880
B18: Резервный фонд | C18: 01 | D18: 11 | E18: ='[1]Приложение 4'!G18 -> 0
B19: Национальная оборона | C19: 02 | D19: 00 | E19: =E20 -> 57000
B20: Мобилизационная и вневойсковая подготовка | C20: 02 | D20: 03 | E20: 57000
B21: Жилищно-коммунальное хозяйство | C21: 05 | E21: =E22 -> 212580
B22: Коммунальное хозяйство | C22: 05 | D22: 03 | E22: 212580
B23: Культура, и кинематография | C23: 08 | E23: =E24 -> 324279
B24: Культура | C24: 08 | D24: 01 | E24: 324279
B25: ФК и Спорт | C25: 11 | E25: ='[1]Приложение 4'!G35 -> 0
B26: Массовый спорт | C26: 11 | D26: 02 | E26: ='[1]Приложение 4'!G36 -> 0

Sheet Прилож4
A1: Приложение 4
A2: к решению "О бюджете МО « село Зубанчи »
A3: на 2017 год
A4: от___________________ №_______________
A7: Распределение
A8: расходов местного бюджета по ведомственной классификации расходов
G9: (руб)
A10: Наименование главного распорядителя кредитов | B10: Гл | C10: Рз | D10: ПР | E10: ЦСР | F10: ВР | G10: 2017 г.
A12: 1 | B12: 2 | C12: 3 | D12: 4 | E12: 5 | F12: 6 | G12: 7
A13: Всего | G13: =G14+G18+G21+G28 -> 1765319
A14: Общегосударственные вопросы | B14: 001 | C14: 01 | G14: =G15+G17 -> 1171460
A15: Функционирование местных администраций | B15: 001 | C15: 01 | D15: 04 | E15: 9980020400 | G15: =G16 -> 988580
A16: Центральный аппарат | B16: 001 | C16: 01 | D16: 04 | E16: 9980020400 | G16: 988580
A17: Другие общегосударственне вопросы (ЦБ) | B17: 001 | C17: 01 | D17: 13 | E17: 9980029900 | G17: 182880
A18: Национальная оборона | B18: 001 | C18: 02 | D18: 00 | G18: =G19 -> 57000
A19: Фонд компенсаций | B19: 001 | C19: 02 | D19: 03 | E19: 9980051180 | G19: 57000
A20: Осуществление первичного воинского учёта на территориях , где отсутствуют военные комиссариаты | B20: 001 | C20: 02 | D20: 03 | E20: 9980051180 | G20: 57000
A21: Жилищно-коммунальное хозяйство | B21: 001 | C21: 05 | D21: 00 | G21: =G22+G23+G24+G25+G26+G27 -> 212580
A22: Коммунальное хозяйство | B22: 001 | C22: 05 | D22: 03 | G22: =G23 -> 0
A23: Благоустройство | B23: 001 | C23: 05 | D23: 03 | E23: 9986000000
A24: Прочие мероприятия по благоустройству городских округов и поселений | B24: 001 | C24: 05 | D24: 03 | E24: 9986000500 | G24: 167580
A25: Уличное освещение | B25: 001 | C25: 05 | D25: 03 | E25: 9986000100 | G25: 45000
A26: Строительство и содержание автомобильных дорог и инженерных сооружений на них в границах городских округов и поселений в рамках благоустройства | B26: 001 | C26: 05 | D26: 03 | E26: 9986000200 | G26: 0
A27: Организация и содержание мест захоронения | B27: 001 | C27: 05 | D27: 03 | E27: 9986000400 | G27: =Прилож5!H42 -> 0
A28: Культура, кинематография. | B28: 001 | C28: 08 | G28: =G29 -> 324279
A29: Культура | B29: 001 | C29: 08 | D29: 01 | E29: 2020100590 | G29: =G30 -> 324279
A30: Дворцы и дома культуры,и другие учреждения культуры | B30: 001 | C30: 08 | D30: 01 | E30: 2020100590 | G30: 324279

Sheet Прилож5
A1: Приложение 5
A2: к решению "О бюджете МО « село Зубанчи »
A3: на 2017 год
A4: от___________________ №_______________
A7: Распределение
A8: расходов местного бюджета и соответсвия видов расходов классификации расходов бюджета
A9: и статей классификации операций сектора государственного управления
A11: Наименование главного распорядителя кредитов | B11: Гл | C11: Рз | D11: ПР | E11: ЦСР | F11: ВР | G11: КОСГУ | H11: 2017 г.
A13: 1 | B13: 2 | C13: 3 | D13: 4 | E13: 5 | F13: 6
A14: Всего | H14: =H15+H32+H36+H47 -> 1765319
A15: Общегосударственные вопросы | B15: 001 | C15: 01 | H15: =H16+H30 -> 1171460
A16: Функционирование местных администраций | B16: 001 | C16: 01 | D16: 04 | E16: 9980020400 | H16: =H17+H18+H19+H20+H21+H22+H23+H24+H25+H26+H27+H28+H29 -> 988580
A17: Центральный аппарат | B17: 001 | C17: 01 | D17: 04 | E17: 9980020400 | F17: 121 | G17: 211 | H17: 607505
E18: 9980020400 | F18: 129 | G18: 213 | H18: 183466
E19: 9982120402 | F19: 122 | G19: 212 | H19: 2000
E20: 9982220406 | F20: 244 | G20: 226 | H20: 35000
E21: 9982920400 | G21: 290
E22: 9982920400 | F22: 851 | G22: 290 | H22: 5000
E23: 9982920400 | F23: 852 | G23: 290 | H23: 18209
E24: 9982220401 | F24: 244 | G24: 221 | H24: 12000
E25: 9982220403 | G25: 223 | H25: 75000
E26: 9982220404 | G26: 224
E27: 9982220405 | G27: 225
E28: 9983120400 | G28: 310 | H28: 16800
E29: 9983420400 | G29: 340 | H29: 33600
A30: Функционирование централиз.бухгалт. | B30: 001 | C30: 01 | D30: 13 | E30: 9980029900 | H30: =H31 -> 182880
A31: Бухгалтерия | B31: 001 | C31: 01 | D31: 13 | E31: 9982229906 | F31: 244 | G31: 226 | H31: 182880
A32: Национальная оборона | B32: 001 | C32: 02 | D32: 00 | H32: =H33 -> 57000
A33: Фонд компенсаций | B33: 001 | C33: 02 | D33: 03 | E33: 9980051180 | H33: 57000
A34: Осуществление первичного воинского учёта на территориях , где отсутствуют военные комиссариаты | B34: 001 | C34: 02 | D34: 03 | E34: 9980051180 | F34: 121 | G34: 211 | H34: 43779
F35: 129 | G35: 213 | H35: 13221
A36: Жилищно-коммунальное хозяйство | B36: 001 | C36: 05 | D36: 00 | H36: =H37 -> 212580
A37: Коммунальное хозяйство | B37: 001 | C37: 05 | D37: 03 | H37: =H38 -> 212580
A38: Благоустройство | B38: 001 | C38: 05 | D38: 03 | E38: 9986000000 | H38: =H39+H40+H41+H42+H43+H44+H46+H45 -> 212580
A39: Уличное освещение | B39: 001 | C39: 05 | D39: 03 | E39: 9986220103 | F39: 244 | G39: 223 | H39: 45000
A40: Строительство и содержание автомобильных дорог и инженерных сооружений на них в границах городских округов и поселений в рамках благоустройства | B40: 001 | C40: 05 | D40: 03 | E40: 9986220206 | F40: 244 | G40: 226 | H40: 0
E41: 9986340200 | G41: 340 | H41: 0
A42: Организация и содержание мест захоронения | B42: 001 | C42: 05 | D42: 03 | E42: 9986340400 | F42: 244 | G42: 340
A43: Прочие мероприятия по благоустройству городских округов и поселений | B43: 001 | C43: 05 | D43: 03 | E43: 9986220505 | F43: 244 | G43: 225 | H43: 50400
E44: 9986220506 | G44: 226 | H44: 117180
E45: 9986310500 | G45: 310
E46: 9986340500 | G46: 340
A47: Культура, кинематография. | B47: 001 | C47: 08 | H47: =H48 -> 324279
A48: Культура | B48: 001 | C48: 08 | D48: 01 | E48: 2020100590 | H48: =H49+H52+H57 -> 324279
A49: Дворцы и дома культуры,и другие учреждения культуры | B49: 001 | C49: 08 | D49: 01 | E49: 2020100590 | H49: =H50+H51 -> 324279
B50: 001 | C50: 08 | D50: 01 | E50: 2020100590 | F50: 111 | G50: 211 | H50: 249062
F51: 119 | G51: 213 | H51: 75217
A52: Библиотеки | B52: 001 | C52: 08 | D52: 01 | E52: 4402900 | H52: =H53+H54+H55+H56 -> 0
B53: 001 | C53: 08 | D53: 01 | E53: 4429900 | F53: 111 | G53: 211 | H53: 0
G54: 213 | H54: 0
F55: 244 | G55: 225 | H55: 0
G56: 340 | H56: 0
A57: Театры, цирки, концертные и другие организации исполнительных искусств | B57: 001 | C57: 08 | D57: 01 | E57: 4439900 | H57: =H58+H59 -> 0
B58: 001 | C58: 08 | D58: 01 | E58: 4439900 | F58: 111 | G58: 211 | H58: ='[3]расчетные ппоказ за 2012'!N6 -> 0
G59: 213 | H59: ='[3]расчетные ппоказ за 2012'!N9 -> 0

Sheet Сводная смета
A1: Согласовано: | E1: "Утверждаю"
A2: Нач. финансово-экономического отдела | E2: Глава МО "село Зубанчи"
A3: адм. МО "Дахадаевский район"
A4: _______________Н.Бахмудов | E4: "____"____________ 2017 г.
B7: СВОДНАЯ СМЕТА
A9: расходов администрации МО "село Зубанчи" на 2017 г.
A11: № п/п | B11: Наименование показателя | C11: Код ЭКР | D11: Всего на год | E11: В том числе по кварталам
E12: 1 кв. | F12: 2 кв. | G12: 3 кв. | H12: 4 кв.
A13: 1 | B13: Аппарат управления (0104) | D13: =E13+F13+G13+H13 -> 988580 | E13: =E14+E18+E25+E26+E27+E24 -> 247147 | F13: =F14+F18+F25+F26+F27+F24 -> 247145 | G13: =G14+G18+G25+G26+G27+G24 -> 247144 | H13: =H14+H18+H25+H26+H27+H24 -> 247144
B14: Оп.труда .и нач. на о/т. | C14: 210 | D14: =E14+F14+G14+H14 -> 792971 | E14: =E15+E16+E17 -> 198244 | F14: =F15+F16+F17 -> 198243 | G14: =G15+G16+G17 -> 198242 | H14: =H15+H16+H17 -> 198242
B15: - заработная плата | C15: 211 | D15: 607505 | E15: 151877 | F15: 151876 | G15: 151876 | H15: 151876
B16: - прочие выплаты | C16: 212 | D16: 2000 | E16: 500 | F16: 500 | G16: 500 | H16: 500
B17: - нач. на оплату труда | C17: 213 | D17: 183466 | E17: 45867 | F17: 45867 | G17: 45866 | H17: 45866
B18: Приобретение услуг | C18: 220 | D18: 122000 | E18: =E19+E20+E21+E22+E23 -> 30500 | F18: =F19+F20+F21+F22+F23 -> 30500 | G18: =G19+G20+G21+G22+G23 -> 30500 | H18: =H19+H20+H21+H22+H23 -> 30500
B19: - услуги связи | C19: 221 | D19: 12000 | E19: 3000 | F19: 3000 | G19: 3000 | H19: 3000
B20: - транспортные услуги | C20: 222 | D20: 0
B21: -ком.услуги | C21: 223 | D21: 75000 | E21: 18750 | F21: 18750 | G21: 18750 | H21: 18750
B22: -услуги по содерж. им-ва | C22: 225 | D22: 0
B23: - прочие услуги | C23: 226 | D23: 35000 | E23: 8750 | F23: 8750 | G23: 8750 | H23: 8750
B24: Пенсии,выплач.орг.гос.упр. | C24: 263 | D24: 0
B25: Прочие расходы | C25: 290 | D25: 23209 | E25: 5803 | F25: 5802 | G25: 5802 | H25: 5802
B26: Увелич. ст- ти осн.ср. | C26: 310 | D26: 16800 | E26: 4200 | F26: 4200 | G26: 4200 | H26: 4200
B27: Увелич. ст.ти мат. запасов | C27: 340 | D27: 33600 | E27: 8400 | F27: 8400 | G27: 8400 | H27: 8400
A28: 2 | B28: Прочие учрежд. (ЦБ) (0113) | D28: =D33 -> 182880 | E28: =E33 -> 45720 | F28: 45720 | G28: 45720 | H28: 45720
B29: Оп.труда .и нач. на о/т. | C29: 210 | D29: 0 | E29: =E30+E31+E32 -> 0 | F29: =F30+F31+F32 -> 0 | G29: =G30+G31+G32 -> 0 | H29: =H30+H31+H32 -> 0
B30: - заработная плата | C30: 211 | D30: 0 | E30: ='[4]расчетные ппоказ за 2014'!D6/4 -> 0 | F30: ='[4]расчетные ппоказ за 2014'!D6/4 -> 0 | G30: ='[4]расчетные ппоказ за 2014'!D6/4 -> 0 | H30: ='[4]расчетные ппоказ за 2014'!D6/4 -> 0
B31: - прочие выплаты | C31: 212 | D31: 0 | E31: ='[4]расчетные ппоказ за 2014'!D7/4 -> 0 | F31: ='[4]расчетные ппоказ за 2014'!D7/4 -> 0 | G31: ='[4]расчетные ппоказ за 2014'!D7/4 -> 0 | H31: ='[4]расчетные ппоказ за 2014'!D7/4 -> 0
B32: - нач. на оплату труда | C32: 213 | D32: 0 | E32: ='[4]расчетные ппоказ за 2014'!D10/4 -> 0 | F32: ='[4]расчетные ппоказ за 2014'!D10/4 -> 0 | G32: ='[4]расчетные ппоказ за 2014'!D10/4 -> 0 | H32: ='[4]расчетные ппоказ за 2014'!D10/4 -> 0
B33: Приобретение услуг | C33: 220 | D33: 182880 | E33: =E34+E35+E36+E37+E38 -> 45720 | F33: =F34+F35+F36+F37+F38 -> 45720 | G33: =G34+G35+G36+G37+G38 -> 45720 | H33: =H34+H35+H36+H37+H38 -> 45720
B34: - услуги связи | C34: 221 | D34: 0 | E34: ='[4]расчетные ппоказ за 2014'!D11/4 -> 0 | F34: ='[4]расчетные ппоказ за 2014'!D11/4 -> 0 | G34: ='[4]расчетные ппоказ за 2014'!D11/4 -> 0 | H34: ='[4]расчетные ппоказ за 2014'!D11/4 -> 0
B35: - транспортные услуги | C35: 222 | D35: 0 | E35: ='[4]расчетные ппоказ за 2014'!D12/4 -> 0 | F35: ='[4]расчетные ппоказ за 2014'!D12/4 -> 0 | G35: ='[4]расчетные ппоказ за 2014'!D12/4 -> 0 | H35: ='[4]расчетные ппоказ за 2014'!D12/4 -> 0
B36: -ком.услуги | C36: 223 | D36: 0 | E36: ='[4]расчетные ппоказ за 2014'!D15/4 -> 0 | F36: ='[4]расчетные ппоказ за 2014'!D15/4 -> 0 | G36: ='[4]расчетные ппоказ за 2014'!D15/4 -> 0 | H36: ='[4]расчетные ппоказ за 2014'!D15/4 -> 0
B37: -услуги по содерж. им-ва | C37: 225 | D37: 0 | E37: 0 | F37: ='[4]расчетные ппоказ за 2014'!D19/2 -> 0 | G37: ='[4]расчетные ппоказ за 2014'!D19/2 -> 0 | H37: 0
B38: -прочие услуги | C38: 226 | D38: 182880 | E38: 45720 | F38: 45720 | G38: 45720 | H38: 45720
B39: Прочие расходы | C39: 290 | D39: 0 | E39: ='[4]расчетные ппоказ за 2014'!D28/4 -> 0 | F39: ='[4]расчетные ппоказ за 2014'!D28/4 -> 0 | G39: ='[4]расчетные ппоказ за 2014'!D28/4 -> 0 | H39: ='[4]расчетные ппоказ за 2014'!D28/4 -> 0
B40: Увелич. ст- ти осн.ср. | C40: 310 | D40: 0 | E40: ='[4]расчетные ппоказ за 2014'!D29/4 -> 0 | F40: ='[4]расчетные ппоказ за 2014'!D29/4 -> 0 | G40: ='[4]расчетные ппоказ за 2014'!D29/4 -> 0 | H40: ='[4]расчетные ппоказ за 2014'!D29/4 -> 0
B41: Увелич. ст- ти мат. запасов | C41: 340 | D41: 0 | E41: ='[4]расчетные ппоказ за 2014'!D32/4 -> 0 | F41: ='[4]расчетные ппоказ за 2014'!D32/4 -> 0 | G41: ='[4]расчетные ппоказ за 2014'!D32/4 -> 0 | H41: ='[4]расчетные ппоказ за 2014'!D32/4 -> 0
A42: 3 | B42: Резервный фонд (0111) | D42: 0 | F42: =F43 -> 0 | G42: =G43 -> 0
B43: Прочие расходы | C43: 290 | D43: 0 | E43: 0 | F43: ='[4]расчетные ппоказ за 2014'!E28/2 -> 0 | G43: ='[4]расчетные ппоказ за 2014'!E28/2 -> 0 | H43: 0
A44: 4 | B44: ВУС (0203) | D44: 57000 | E44: =E45+E48 -> 14250 | F44: =F45+F48 -> 14250 | G44: =G45+G48 -> 14250 | H44: =H45+H48 -> 14250
B45: Оп.труда .и нач. на о/т. | C45: 210 | D45: 57000 | E45: =E46+E47 -> 14250 | F45: =F46+F47 -> 14250 | G45: =G46+G47 -> 14250 | H45: =H46+H47 -> 14250
B46: - заработная плата | C46: 211 | D46: 43779 | E46: 10944 | F46: 10945 | G46: 10945 | H46: 10945
B47: - нач. на оплату труда | C47: 213 | D47: 13221 | E47: 3306 | F47: 3305 | G47: 3305 | H47: 3305
B48: Увелич. ст.ти мат. запасов | C48: 340 | D48: 0
A49: 5 | B49: ЖКХ, Всего: (0503) | D49: 212580 | E49: =E50+E56+E63+E69 -> 53145 | F49: =F50+F56+F63+F69 -> 53145 | G49: =G50+G56+G63+G69 -> 53145 | H49: =H50+H56+H63+H69 -> 53145
B50: Благоустройство | D50: 167580 | E50: =E51+E54+E55 -> 41895 | F50: =F51+F54+F55 -> 41895 | G50: =G51+G54+G55 -> 41895 | H50: =H51+H54+H55 -> 41895
B51: Приобретение услуг | C51: 220 | D51: 167580 | E51: =E52+E53 -> 41895 | F51: =F52+F53 -> 41895 | G51: =G52+G53 -> 41895 | H51: =H52+H53 -> 41895
B52: - услуги по содерж. им-ва | C52: 225 | D52: 50400 | E52: 12600 | F52: 12600 | G52: 12600 | H52: 12600
B53: - прочие услуги | C53: 226 | D53: 117180 | E53: 29295 | F53: 29295 | G53: 29295 | H53: 29295
B54: - увелич. ст-ти осн.средств | C54: 310 | D54: 0 | F54: ='[4]расчетные ппоказ за 2014'!G29/2 -> 0 | G54: ='[4]расчетные ппоказ за 2014'!G29/2 -> 0
B55: - увелич. ст-ти матер.запасов | C55: 340 | D55: 0
B56: Уличное освещение | D56: 45000 | E56: =E57+E61+E62 -> 11250 | F56: =F57+F61+F62 -> 11250 | G56: =G57+G61+G62 -> 11250 | H56: =H57+H61+H62 -> 11250
B57: Приобретение услуг | C57: 220 | D57: 45000 | E57: =E58+E59+E60 -> 11250 | F57: =F58+F59+F60 -> 11250 | G57: =G58+G59+G60 -> 11250 | H57: =H58+H59+H60 -> 11250
B58: -ком.услуги | C58: 223 | D58: 45000 | E58: 11250 | F58: 11250 | G58: 11250 | H58: 11250
B59: - услуги по содерж. им-ва | C59: 225 | D59: 0 | F59: ='[4]расчетные ппоказ за 2014'!H19/2 -> 0 | G59: ='[4]расчетные ппоказ за 2014'!H19/2 -> 0
B60: - прочие услуги | C60: 226 | D60: 0 | E60: ='[4]расчетные ппоказ за 2014'!H22/4 -> 0 | F60: ='[4]расчетные ппоказ за 2014'!H22/4 -> 0 | G60: ='[4]расчетные ппоказ за 2014'!H22/4 -> 0 | H60: ='[4]расчетные ппоказ за 2014'!H22/4 -> 0
B61: - увелич. ст-ти осн.средств | C61: 310 | D61: 0 | F61: ='[4]расчетные ппоказ за 2014'!H29/2 -> 0 | G61: ='[4]расчетные ппоказ за 2014'!H29/2 -> 0
B62: - увелич. ст-ти матер.запасов | C62: 340 | D62: 0 | F62: ='[4]расчетные ппоказ за 2014'!H32/2 -> 0 | G62: ='[4]расчетные ппоказ за 2014'!H32/2 -> 0
B63: Стр-во и содерж. Автодорог | D63: 0 | E63: =E64+E67+E68 -> 0 | F63: =F64+F67+F68 -> 0 | G63: =G64+G67+G68 -> 0 | H63: =H64+H67+H68 -> 0
B64: Приобретение услуг | C64: 220 | D64: 0 | E64: =E65+E66 -> 0 | F64: =F65+F66 -> 0 | G64: =G65+G66 -> 0 | H64: =H65+H66 -> 0
B65: - услуги по содерж. им-ва | C65: 225 | D65: 0 | E65: 0 | F65: ='[4]расчетные ппоказ за 2014'!I19/2 -> 0 | G65: ='[4]расчетные ппоказ за 2014'!I19/2 -> 0 | H65: 0
B66: - прочие услуги | C66: 226 | D66: 0 | E66: ='[4]расчетные ппоказ за 2014'!I22/4 -> 0 | F66: ='[4]расчетные ппоказ за 2014'!I22/4 -> 0 | G66: ='[4]расчетные ппоказ за 2014'!I22/4 -> 0 | H66: ='[4]расчетные ппоказ за 2014'!I22/4 -> 0
B67: - увелич. ст-ти осн.средств | C67: 310 | D67: 0 | F67: ='[4]расчетные ппоказ за 2014'!I29/2 -> 0 | G67: ='[4]расчетные ппоказ за 2014'!I29/2 -> 0
B68: - увелич. ст-ти матер.запасов | C68: 340 | D68: 0 | F68: ='[4]расчетные ппоказ за 2014'!I32/2 -> 0 | G68: ='[4]расчетные ппоказ за 2014'!I32/2 -> 0
B69: Организ. и содерж. мест захор. | D69: 0 | E69: =E70+E73+E74 -> 0 | F69: =F70+F73+F74 -> 0 | G69: =G70+G73+G74 -> 0 | H69: =H70+H73+H74 -> 0
B70: Приобретение услуг | C70: 220 | D70: 0 | E70: =E71+E72 -> 0 | F70: =F71+F72 -> 0 | G70: =G71+G72 -> 0 | H70: =H71+H72 -> 0
B71: - услуги по содерж. им-ва | C71: 225 | D71: 0 | F71: ='[4]расчетные ппоказ за 2014'!J19/2 -> 0 | G71: ='[4]расчетные ппоказ за 2014'!J19/2 -> 0
B72: - прочие услуги | C72: 226 | D72: 0 | E72: ='[4]расчетные ппоказ за 2014'!J22/4 -> 0 | F72: ='[4]расчетные ппоказ за 2014'!J22/4 -> 0 | G72: ='[4]расчетные ппоказ за 2014'!J22/4 -> 0 | H72: ='[4]расчетные ппоказ за 2014'!J22/4 -> 0
B73: - увелич. ст-ти осн.средств | C73: 310 | D73: 0 | F73: ='[4]расчетные ппоказ за 2014'!J29/2 -> 0 | G73: ='[4]расчетные ппоказ за 2014'!J29/2 -> 0
B74: - увелич. ст-ти матер.запасов | C74: 340 | D74: 0
A75: 6 | B75: Культура, Всего: | D75: 324279 | E75: =E76+E88+E100 -> 81069 | F75: =F76+F88+F100 -> 81070 | G75: =G76+G88+G100 -> 81070 | H75: =H76+H88+H100 -> 81070
B76: Клубы, итого:(0801) | C76: 251 | D76: 324279 | E76: =E78+E80 -> 81069 | F76: =F78+F80 -> 81070 | G76: =G78+G80 -> 81070 | H76: =H78+H80 -> 81070
B77: Дотация для финансирования учреждений культуры | D77: 0
B78: - заработная плата | C78: 211 | D78: =E78+F78+G78+H78 -> 249064 | E78: 62266 | F78: 62266 | G78: 62266 | H78: 62266
B79: - прочие выплаты | C79: 212 | D79: 0 | E79: ='[4]расчетные ппоказ за 2014'!L7/4 -> 0 | F79: ='[4]расчетные ппоказ за 2014'!L7/4 -> 0 | G79: ='[4]расчетные ппоказ за 2014'!L7/4 -> 0 | H79: ='[4]расчетные ппоказ за 2014'!L7/4 -> 0
B80: - нач. на оплату труда | C80: 213 | D80: 75215 | E80: 18803 | F80: 18804 | G80: 18804 | H80: 18804
B81: Приобретение услуг | C81: 220 | D81: 0 | E81: =E82+E83+E84+E85 -> 0 | F81: =F82+F83+F84+F85 -> 0 | G81: =G82+G83+G84+G85 -> 0 | H81: =H82+H83+H84+H85 -> 0
B82: - транспортные услуги | C82: 222 | D82: 0 | E82: ='[4]расчетные ппоказ за 2014'!L12/4 -> 0 | F82: ='[4]расчетные ппоказ за 2014'!L12/4 -> 0 | G82: ='[4]расчетные ппоказ за 2014'!L12/4 -> 0 | H82: ='[4]расчетные ппоказ за 2014'!L12/4 -> 0
B83: -ком.услуги | C83: 223 | D83: 0 | E83: ='[4]расчетные ппоказ за 2014'!L15/4 -> 0 | F83: ='[4]расчетные ппоказ за 2014'!L15/4 -> 0 | G83: ='[4]расчетные ппоказ за 2014'!L15/4 -> 0 | H83: ='[4]расчетные ппоказ за 2014'!L15/4 -> 0
B84: -услуги по содерж. им-ва, | C84: 225 | D84: 0 | F84: ='[4]расчетные ппоказ за 2014'!L19/2 -> 0 | G84: ='[4]расчетные ппоказ за 2014'!L19/2 -> 0
B85: - прочие услуги | C85: 226 | D85: 0 | E85: ='[4]расчетные ппоказ за 2014'!L22/4 -> 0 | F85: ='[4]расчетные ппоказ за 2014'!L22/4 -> 0 | G85: ='[4]расчетные ппоказ за 2014'!L22/4 -> 0 | H85: ='[4]расчетные ппоказ за 2014'!L22/4 -> 0
B86: Увелич. ст- ти осн.ср. | C86: 310 | D86: 0 | F86: ='[4]расчетные ппоказ за 2014'!L29/2 -> 0 | G86: ='[4]расчетные ппоказ за 2014'!L29/2 -> 0
B87: Увелич. ст- ти мат. запасов | C87: 340 | D87: 0
B88: Библиотеки, итого:(0801) | C88: 251 | D88: 0
B89: Дотация для финансирования библиотек | D89: 0
B90: - заработная плата | C90: 211 | D90: 0
B91: - прочие выплаты | C91: 212 | D91: 0
B92: - нач. на оплату труда | C92: 213 | D92: 0
B93: Приобретение услуг | C93: 220 | D93: 0
B94: - транспортные услуги | C94: 222 | D94: 0
B95: -ком.услуги | C95: 223 | D95: 0
B96: -услуги по содерж. им-ва | C96: 225 | D96: 0
B97: - прочие услуги | C97: 226 | D97: 0
B98: Увелич. ст- ти осн.ср. | C98: 310 | D98: 0
B99: Увелич. ст- ти мат. запасов | C99: 340 | D99: 0
B100: Театры, конц.организ. итого:(0801) | C100: 251 | D100: 0
B101: Оп.труда .и нач. на о/т. | C101: 210 | D101: 0
B102: - заработная плата | C102: 211 | D102: 0
B103: - прочие выплаты | C103: 212 | D103: 0
B104: - нач. на оплату труда | C104: 213 | D104: 0
B105: Приобретение услуг | C105: 220 | D105: 0
B106: - прочие услуги | C106: 226 | D106: 0
B107: Увелич. ст- ти мат. запасов | C107: 340 | D107: 0
A108: 7 | B108: ФК и Спорт (1100) | D108: 0
B109: Прочие расходы | C109: 290 | D109: 0
B110: Всего расходов | D110: 1765319 | E110: =E13+E28+E42+E44+E49+E75+E108 -> 441331 | F110: =F13+F28+F42+F44+F49+F75+F108 -> 441330 | G110: =G13+G28+G42+G44+G49+G75+G108 -> 441329 | H110: =H13+H28+H42+H44+H49+H75+H108 -> 441329
A114: № п/п | B114: Наименование показателя | C114: Всего | D114: В том числе по кварталам
D115: 1 кв. | E115: 2 кв. | F115: 3 кв. | G115: 4 кв.
B116: Налоговые и неналоговые поступления | C116: =D116+E116+F116+G116 -> 0
A117: 1 | B117: Налог на доходы физ. лиц | C117: =D117+E117+F117+G117 -> 19000 | D117: 4750 | E117: 4750 | F117: 4750 | G117: 4750
A118: 2 | B118: Налог на имущество физ. лиц | C118: 42000 | D118: 10500 | E118: 10500 | F118: 10500 | G118: 10500
A119: 4 | B119: Земельный налог с физ лиц | C119: 50000 | D119: 12500 | E119: 12500 | F119: 12500 | G119: 12500
A120: 5 | B120: Земельный налог с юр. Лиц | C120: =D120+E120+F120+G120 -> 94500 | D120: 23625 | E120: 23625 | F120: 23625 | G120: 23625
A121: 6 | B121: ЕСХН | C121: 25000 | D121: 6250 | E121: 6250 | F121: 6250 | G121: 6250
B122: Итого собственные доходы | C122: =C117+C118+C119+C120+C121 -> 230500 | D122: =D117+D118+D119+D121 -> 34000 | E122: =E117+E118+E119+E121 -> 34000 | F122: =F117+F118+F119+F121 -> 34000 | G122: =G117+G118+G119+G121 -> 34000
A123: 7 | B123: Дотация | C123: 1477819 | D123: 369454 | E123: 369455 | F123: 369455 | G123: 369455
A124: 8 | B124: Субвенция ВУС | C124: 57000 | D124: 14250 | E124: 14250 | F124: 14250 | G124: 14250
B125: Всего доходов | C125: =C122+C123+C124 -> 1765319 | D125: =D122+D123+D124 -> 417704 | E125: =E122+E123+E124 -> 417705 | F125: =F122+F123+F124 -> 417705 | G125: =G122+G123+G124 -> 417705

Sheet Расч. пок.
A1: Расчётные показатели к проекту бюджета МО "село Зубанчи" на 2017 год.
A3: Код ЭК | B3: Наименование экономических статей. | C3: Общегос. вопросы 0104 | D3: Ц/Б 0113 | E3: Рез. фонд 0111 | F3: ВУС 0203 | G3: ЖКХ - 0503 | K3: Мол.политика 0707 | L3: Клубы 0801 | M3: Библ. 0801 | N3: Театр 0801 | O3: Спорт 1100 | P3: Всего:
G4: благ-во | H4: освещ. | I4: а/дор. | J4: кладб.
A5: 211 | B5: Заработная плата | C5: 607505 | F5: 43779 | L5: 249062 | P5: =O5+N5+M5+L5+K5+J5+I5+H5+G5+F5+E5+D5+C5 -> 900346
A6: 212 | B6: Прочие выплаты: | C6: =C7+C8 -> 2000 | D6: =D7+D8 -> 0 | E6: 0 | F6: 0 | G6: 0 | H6: 0 | I6: 0 | J6: 0 | K6: 0 | L6: 0 | M6: 0 | N6: 0 | O6: 0 | P6: =O6+N6+M6+L6+K6+J6+I6+H6+G6+F6+E6+D6+C6 -> 2000
B7: - суточные | C7: 2000 | P7: 2000
B8: - использования частного транспорта в служебных целях | C8: 0 | P8: 0
A9: 213 | B9: Нач. на оплату труда | C9: 183466 | F9: 13221 | L9: 75217 | P9: 271904
A10: 221 | B10: Услуги связи | C10: 12000 | P10: 12000
A11: 222 | B11: Транспортные услуги: | C11: =C12 -> 0 | D11: =D12+D13 -> 0 | E11: 0 | F11: 0 | G11: 0 | H11: 0 | I11: 0 | J11: 0 | K11: 0 | L11: 0 | M11: 0 | N11: 0 | O11: 0 | P11: 0
B12: - проездные | C12: 0 | P12: 0
B13: - транспортные услуги | P13: 0
A14: 223 | B14: Ком. услуги | C14: =C15+C16 -> 75000 | D14: =D15+D16 -> 0 | E14: 0 | F14: 0 | G14: 0 | H14: 45000 | I14: 0 | J14: 0 | K14: 0 | L14: 0 | M14: 0 | N14: 0 | O14: 0 | P14: 120000
B15: - газ | C15: 25000 | H15: 0 | P15: 25000
B16: - эл. энергия | C16: 50000 | H16: 45000 | L16: 0 | P16: 95000
A17: 224 | B17: Арендная плата | P17: 0
A18: 225 | B18: Усл. на содерж. им-ва. | C18: =C19+C20 -> 0 | D18: 0 | E18: 0 | F18: 0 | G18: 50400 | H18: 0 | I18: 0 | J18: 0 | K18: 0 | L18: 0 | M18: 0 | N18: 0 | O18: 0 | P18: 50400
B19: - тек. рем. и содерж им. | G19: 50400 | I19: 0 | P19: 50400
B20: - капитальный ремонт | I20: 0 | M20: ='[5]Расчет библ'!$F$11 -> 0 | P20: 0
A21: 226 | B21: Прочие услуги | C21: =C22+C23+C24+C25 -> 35000 | D21: =D22+D23+D24+D25 -> 182880 | E21: 0 | F21: 0 | G21: 117180 | H21: 0 | I21: 0 | J21: 0 | K21: 0 | L21: 0 | M21: 0 | N21: 0 | O21: 0 | P21: 335060
B22: 1С | C22: 18000 | D22: 0 | P22: 18000
L23: 0 | M23: 0 | P23: 0
B24: парус | C24: 10000 | D24: 182880 | G24: 117180 | P24: 310060
B25: типография | C25: 7000 | P25: 7000
A26: 263 | B26: Пенсии,выплач.орг.гос.упр. | P26: 0
A27: 290 | B27: Прочие расходы | C27: =C30+C31 -> 23209 | D27: =D30+D31 -> 0 | E27: 0 | F27: 0 | G27: 0 | H27: 0 | I27: 0 | J27: 0 | K27: 0 | L27: 0 | P27: 23209
P28: 0
P29: 0
B30: налог на имущество | C30: 5000 | P30: 5000
B31: земельный налог | C31: 18209 | P31: 18209
A32: 310 | B32: Увелич. ст -ти осн. ср. | C32: =C33+C34 -> 16800 | D32: =D33+D34 -> 0 | E32: 0 | F32: 0 | G32: 0 | H32: 0 | I32: 0 | J32: 0 | K32: 0 | L32: 0 | M32: 0 | N32: 0 | O32: 0 | P32: 16800
B33: - приобретение оборуд | C33: 16800 | G33: 0 | P33: 16800
B34: - кап. строительства | P34: 0
A35: 340 | B35: Увел. ст-ти мат.запасов | C35: =C36+C37+C38 -> 33600 | D35: =D36+D37+D38 -> 0 | E35: 0 | F35: 0 | G35: 0 | H35: 0 | I35: 0 | J35: 0 | K35: 0 | L35: 0 | M35: 0 | N35: 0 | O35: 0 | P35: 33600
B36: - ГСМ | C36: 0 | P36: 0
B37: - кот-печ.топливо | C37: 0 | P37: 0
B38: - расх.матер,МБП | C38: 33600 | H38: 0 | L38: 0 | M38: 0 | P38: 33600
B39: ИТОГО | C39: =C5+C6+C9+C10+C11+C14+C17+C18+C21+C26+C27+C32+C35 -> 988580 | D39: =D5+D6+D9+D10+D11+D14+D17+D18+D21+D26+D27+D32+D35 -> 182880 | E39: =E5+E6+E9+E10+E11+E14+E17+E18+E21+E26+E27+E32+E35 -> 0 | F39: 57000 | G39: 167580 | H39: 45000 | I39: 0 | J39: 0 | K39: 0 | L39: 324279 | M39: 0 | N39: 0 | O39: 0 | P39: 1765319
A41: Глава МО "село Зубанчи"_______________Гаджимурадов С.

Sheet Лист3
